Workbook

Sheet Sheet1
F1: Monthly | G1: Monthly | H1: =+G1 -> Monthly | I1: Monthly | J1: Monthly
F2: 2024 | G2: 2024 | H2: 2024 | I2: =+H2 -> 2024 | J2: 2024
B3: Unit | E3: 2024 | F3: Condo | G3: RE | H3: Ins | I3: Mgmt Fee | J3: Maint on Unit | K3: Cash Flow | L3: Total | M3: Annual | N3: Annual | O3: Net Operating | P3: Cap | Q3: NY or NJ | S3: Asking Price
B4: # | C4: Type | D4: Sq Ft | E4: Rent | F4: Fees | G4: Taxes | H4: Costs | I4: 0.06 | L4: Expenses | M4: Revenues | N4: Expenses | O4: Income | P4: Rate | Q4: View | R4: Balcony
A5: 1 | B5: 1516 | C5: STUDIO | D5: 561 | E5: 892.19 | F5: 375.40503 | G5: 156.2466667 | H5: 56.92307692 | I5: 53.5314 | J5: 25.64102564 | K5: =E5-L5 -> 224.4428008 | L5: =SUM(F5:J5) -> 667.7471992 | M5: =E5*12 -> 10706.28 | N5: =L5*12 -> 8012.966391 | O5: =M5-N5 -> 2693.313609 | P5: =O5/S5 -> 0.02071779699 | Q5: NJ | S5: 130000
A6: 2 | B6: 1116 | C6: STUDIO | D6: 561 | E6: 1015.48 | F6: 375.40503 | G6: 156.2466667 | H6: 56.92307692 | I6: 60.9288 | J6: 25.64102564 | K6: 340.3354008 | L6: 675.1445992 | M6: 12185.76 | N6: 8101.735191 | O6: 4084.024809 | P6: 0.03141557546 | Q6: NJ | S6: 130000
A7: 3 | B7: 606 | C7: STUDIO | D7: 542 | E7: 1067.76 | F7: 363.16917 | G7: 150.3133333 | H7: 56.92307692 | I7: 64.0656 | J7: 25.64102564 | K7: 407.6477941 | L7: 660.1122059 | M7: 12813.12 | N7: 7921.346471 | O7: 4891.773529 | P7: 0.03762902715 | Q7: NY | S7: 130000
A8: 4 | B8: 716 | C8: STUDIO | D8: 561 | E8: 1089.92 | F8: 375.40503 | G8: 156.2466667 | H8: 56.92307692 | I8: 65.3952 | J8: 25.64102564 | K8: 410.3090008 | L8: 679.6109992 | M8: 13079.04 | N8: 8155.331991 | O8: 4923.708009 | P8: 0.03787467699 | Q8: NJ | S8: 130000
A9: 5 | B9: 1216 | C9: STUDIO | D9: 552 | E9: 1185.68 | F9: 362.64267 | G9: 150.3133333 | H9: 56.92307692 | I9: 71.1408 | J9: 25.64102564 | K9: 519.0190941 | L9: 666.6609059 | M9: 14228.16 | N9: 7999.930871 | O9: 6228.229129 | P9: 0.04790945484 | Q9: NJ | S9: 130000
A10: 6 | B10: 406 | C10: STUDIO | D10: 538 | E10: 1283.5 | F10: 360.0207 | G10: 150.3133333 | H10: 56.92307692 | I10: 77.01 | J10: 25.64102564 | K10: 613.5918641 | L10: 669.9081359 | M10: 15402 | N10: 8038.897631 | O10: 7363.102369 | P10: 0.05663924899 | Q10: NY | S10: 130000
A11: 7 | B11: 405 | C11: STUDIO | D11: 535 | E11: 1291.28 | F11: 358.27272 | G11: 148.9933333 | H11: 56.92307692 | I11: 77.4768 | J11: 25.64102564 | K11: 623.9730441 | L11: 667.3069559 | M11: 15495.36 | N11: 8007.683471 | O11: 7487.676529 | P11: 0.05759751176 | Q11: NY | S11: 130000
A12: 8 | B12: 1716 | C12: STUDIO | D12: 561 | E12: 1652.03 | F12: 375.40503 | G12: 156.2466667 | H12: 56.92307692 | I12: 99.1218 | J12: 25.64102564 | K12: 938.6924008 | L12: 713.3375992 | M12: 19824.36 | N12: 8560.051191 | O12: 11264.30881 | P12: 0.0866485293 | Q12: NJ | S12: 130000
A14: 9 | B14: 1414 | C14: 1-1 BR | D14: 821 | E14: 1076.32 | F14: 549.73971 | G14: 229.4233333 | H14: 56.92307692 | I14: 64.5792 | J14: 25.64102564 | K14: =E14-L14 -> 150.0136541 | L14: =SUM(F14:J14) -> 926.3063459 | M14: =E14*12 -> 12915.84 | N14: =L14*12 -> 11115.67615 | O14: =M14-N14 -> 1800.163849 | P14: =O14/S14 -> 0.008000728219 | Q14: NJ | S14: 225000
A15: 10 | B15: 809 | C15: 1-1 BR | D15: 885 | E15: 1194.76 | F15: 592.57575 | G15: 247.2233333 | H15: 56.92307692 | I15: 71.6856 | J15: 25.64102564 | K15: 200.7112141 | L15: 994.0487859 | M15: 14337.12 | N15: 11928.58543 | O15: 2408.534569 | P15: 0.01070459809 | Q15: NY | R15: Y | S15: 225000
A16: 11 | B16: 807 | C16: 1-1 BR | D16: 769 | E16: 1217.53 | F16: 514.76958 | G16: 214.26 | H16: 56.92307692 | I16: 73.0518 | J16: 25.64102564 | K16: 332.8845174 | L16: 884.6454826 | M16: 14610.36 | N16: 10615.74579 | O16: 3994.614209 | P16: 0.01775384093 | Q16: NY | S16: 225000
A17: 12 | B17: 1714 | C17: 1-1 BR | D17: 821 | E17: 1382.46 | F17: 549.73971 | G17: 229.4233333 | H17: 56.92307692 | I17: 82.9476 | J17: 25.64102564 | K17: 437.7852541 | L17: 944.6747459 | M17: 16589.52 | N17: 11336.09695 | O17: 5253.423049 | P17: 0.02334854689 | Q17: NJ | S17: 225000
A18: 13 | B18: 1611 | C18: 1-1 BR | D18: 877 | E18: 1463.73 | F18: 587.33181 | G18: 244.5866667 | H18: 56.92307692 | I18: 87.8238 | J18: 25.64102564 | K18: 461.4236208 | L18: 1002.306379 | M18: 17564.76 | N18: 12027.67655 | O18: 5537.083449 | P18: 0.02460925977 | Q18: NJ | R18: Y | S18: 225000
A19: 14 | B19: 602 | C19: 1-1 BR | D19: 866 | E19: 1694.07 | F19: 580.16088 | G19: 241.95 | H19: 56.92307692 | I19: 101.6442 | J19: 25.64102564 | K19: 687.7508174 | L19: 1006.319183 | M19: 20328.84 | N19: 12075.83019 | O19: 8253.009809 | P19: 0.0366800436 | Q19: NY | R19: Y | S19: 225000
A20: 15 | B20: 1117 | C20: 1-1 BR | D20: 803 | E20: 1759.32 | F20: 537.67233 | G20: 224.15 | H20: 56.92307692 | I20: 105.5592 | J20: 25.64102564 | K20: 809.3743674 | L20: 949.9456326 | M20: 21111.84 | N20: 11399.34759 | O20: 9712.492409 | P20: 0.04316663293 | Q20: NJ | S20: 225000
A21: 16 | B21: 1614 | C21: 1-1 BR | D21: 821 | E21: 1930.3 | F21: 549.5607 | G21: 229.4233333 | H21: 56.92307692 | I21: 115.818 | J21: 25.64102564 | K21: 952.9338641 | L21: 977.3661359 | M21: 23163.6 | N21: 11728.39363 | O21: 11435.20637 | P21: 0.05082313942 | Q21: NJ | S21: 225000
A23: 17 | B23: 310 | C23: 2-1 BR | D23: 1088 | E23: 2280.1 | F23: 728.96031 | G23: 303.92 | H23: 56.92307692 | I23: 136.806 | J23: 25.64102564 | K23: =E23-L23 -> 1027.849587 | L23: =SUM(F23:J23) -> 1252.250413 | M23: =E23*12 -> 27361.2 | N23: =L23*12 -> 15027.00495 | O23: =M23-N23 -> 12334.19505 | P23: =O23/S23 -> 0.0440506966 | Q23: NY | R23: Y | S23: 280000
K24: Total | M24: =SUM(M5:M23) -> 281717.16 | N24: 172052.3004 | O24: 109664.8596 | P24: 0.03514899345 | S24: =SUM(S5:S23) -> 3120000
